[Event "Titled Tuesday Blitz July 11 Early 2023"]
[White "Lohani, Sujana"]
[Black "Vaglio Munoz, Jaime"]
[WhiteFideId "12311987"]
[BlackFideId "6500145"]
[WhiteElo "1932"]
[BlackElo "2277"]
[Result "1/2-1/2"]
[Round "8"]
[TimeControl "180+2"]
[Date "2023.07.11"]
[WhiteClock "0:00:05"]
[BlackClock "0:00:31"]
[Board "164"]

1. d4 {[%clk 0:03:00]}  c6 {[%clk 0:02:59]} 2. Nf3 {[%clk 0:02:52]}  b5 {[%clk 0:02:59]} 3. g3 {[%clk 0:02:49]}  d5 {[%clk 0:02:57]} 4. Bg2 {[%clk 0:02:49]}  h6 {[%clk 0:02:57]} 5. O-O {[%clk 0:02:48]}  Bf5 {[%clk 0:02:57]} 6. c3 {[%clk 0:02:44]}  e6 {[%clk 0:02:56]} 7. Nbd2 {[%clk 0:02:43]}  a5 {[%clk 0:02:55]} 8. Re1 {[%clk 0:02:43]}  Nf6 {[%clk 0:02:55]} 9. Nh4 {[%clk 0:02:42]}  Bh7 {[%clk 0:02:54]} 10. e4 {[%clk 0:02:42]}  Be7 {[%clk 0:02:54]} 11. e5 {[%clk 0:02:27]}  Nfd7 {[%clk 0:02:52]} 12. Qg4 {[%clk 0:02:25]}  Kf8 {[%clk 0:02:43]} 13. Ndf3 {[%clk 0:01:59]}  c5 {[%clk 0:02:41]} 14. Qh5 {[%clk 0:01:55]}  cxd4 {[%clk 0:02:39]} 15. cxd4 {[%clk 0:01:45]}  Nc6 {[%clk 0:02:38]} 16. Bxh6 {[%clk 0:01:43]}  gxh6 {[%clk 0:02:36]} 17. Qxh6+ {[%clk 0:01:43]}  Ke8 {[%clk 0:02:36]} 18. Qg7 {[%clk 0:01:42]}  Rf8 {[%clk 0:02:30]} 19. Qxh7 {[%clk 0:01:41]}  Qb6 {[%clk 0:02:30]} 20. Red1 {[%clk 0:01:33]}  Bxh4 {[%clk 0:02:28]} 21. Qxh4 {[%clk 0:01:31]}  Ne7 {[%clk 0:02:27]} 22. Rac1 {[%clk 0:01:28]}  b4 {[%clk 0:02:22]} 23. b3 {[%clk 0:01:16]}  Ng6 {[%clk 0:02:17]} 24. Qg5 {[%clk 0:01:04]}  Qd8 {[%clk 0:02:14]} 25. Qd2 {[%clk 0:01:00]}  Ne7 {[%clk 0:02:09]} 26. Rc2 {[%clk 0:00:58]}  Nf5 {[%clk 0:02:05]} 27. Rdc1 {[%clk 0:00:58]}  Qb6 {[%clk 0:02:03]} 28. Rc6 {[%clk 0:00:54]}  Qd8 {[%clk 0:01:50]} 29. Bh3 {[%clk 0:00:52]}  Ne7 {[%clk 0:01:48]} 30. Rc7 {[%clk 0:00:51]}  Rh8 {[%clk 0:01:47]} 31. Bf1 {[%clk 0:00:48]}  Kf8 {[%clk 0:01:44]} 32. Bb5 {[%clk 0:00:44]}  Nb6 {[%clk 0:01:43]} 33. Qf4 {[%clk 0:00:32]}  Nf5 {[%clk 0:01:28]} 34. g4 {[%clk 0:00:26]}  Rg8 {[%clk 0:01:27]} 35. h3 {[%clk 0:00:22]}  Rc8 {[%clk 0:01:23]} 36. Rxc8 {[%clk 0:00:20]}  Nxc8 {[%clk 0:01:23]} 37. Kh2 {[%clk 0:00:18]}  Nfe7 {[%clk 0:01:21]} 38. Ng5 {[%clk 0:00:14]}  Rxg5 {[%clk 0:01:15]} 39. Qxg5 {[%clk 0:00:14]}  Qb6 {[%clk 0:01:11]} 40. Bd3 {[%clk 0:00:11]}  Qxd4 {[%clk 0:01:07]} 41. Qh6+ {[%clk 0:00:10]}  Ke8 {[%clk 0:01:06]} 42. Qh8+ {[%clk 0:00:10]}  Kd7 {[%clk 0:01:06]} 43. Bb5+ {[%clk 0:00:11]}  Nc6 {[%clk 0:01:06]} 44. Bxc6+ {[%clk 0:00:10]}  Kc7 {[%clk 0:01:06]} 45. Bb5+ {[%clk 0:00:09]}  Kb6 {[%clk 0:01:06]} 46. Qxc8 {[%clk 0:00:07]}  Qxf2+ {[%clk 0:01:05]} 47. Kh1 {[%clk 0:00:07]}  Qf3+ {[%clk 0:01:05]} 48. Kg1 {[%clk 0:00:07]}  Qg3+ {[%clk 0:01:05]} 49. Kf1 {[%clk 0:00:07]}  Qxh3+ {[%clk 0:01:05]} 50. Ke1 {[%clk 0:00:06]}  Qh1+ {[%clk 0:01:03]} 51. Kd2 {[%clk 0:00:06]}  Qg2+ {[%clk 0:01:02]} 52. Be2 {[%clk 0:00:05]}  d4 {[%clk 0:00:55]} 53. Qc6+ {[%clk 0:00:05]}  Qxc6 {[%clk 0:00:53]} 54. Rxc6+ {[%clk 0:00:06]}  Kxc6 {[%clk 0:00:54]} 55. Kd3 {[%clk 0:00:06]}  Kd5 {[%clk 0:00:54]} 56. Bf3+ {[%clk 0:00:07]}  Kxe5 {[%clk 0:00:54]} 57. Be4 {[%clk 0:00:05]}  f5 {[%clk 0:00:53]} 58. gxf5 {[%clk 0:00:05]}  exf5 {[%clk 0:00:54]} 59. Bf3 {[%clk 0:00:05]}  Kf4 {[%clk 0:00:51]} 60. Bh5 {[%clk 0:00:04]}  Ke5 {[%clk 0:00:51]} 61. Bf3 {[%clk 0:00:04]}  Kf4 {[%clk 0:00:51]} 62. Bc6 {[%clk 0:00:03]}  Ke5 {[%clk 0:00:51]} 63. Bb7 {[%clk 0:00:03]}  f4 {[%clk 0:00:44]} 64. Bf3 {[%clk 0:00:03]}  Kd6 {[%clk 0:00:37]} 65. Kxd4 {[%clk 0:00:04]}  Ke6 {[%clk 0:00:36]} 66. Ke4 {[%clk 0:00:04]}  Kd6 {[%clk 0:00:36]} 67. Kxf4 {[%clk 0:00:04]}  Kc5 {[%clk 0:00:37]} 68. Ke3 {[%clk 0:00:04]}  Kb5 {[%clk 0:00:36]} 69. Kd3 {[%clk 0:00:04]}  a4 {[%clk 0:00:36]} 70. Kd4 {[%clk 0:00:03]}  a3 {[%clk 0:00:36]} 71. Kd3 {[%clk 0:00:03]}  Kc5 {[%clk 0:00:36]} 72. Be2 {[%clk 0:00:02]}  Kd5 {[%clk 0:00:33]} 73. Bf3+ {[%clk 0:00:03]}  Kc5 {[%clk 0:00:33]} 74. Be4 {[%clk 0:00:03]}  Kb5 {[%clk 0:00:33]} 75. Bd5 {[%clk 0:00:03]}  Kc5 {[%clk 0:00:33]} 76. Bc4 {[%clk 0:00:03]}  Kd6 {[%clk 0:00:33]} 77. Ke4 {[%clk 0:00:04]}  Kc6 {[%clk 0:00:33]} 78. Kd4 {[%clk 0:00:04]}  Kb6 {[%clk 0:00:33]} 79. Kd5 {[%clk 0:00:04]}  Ka5 {[%clk 0:00:31]} 80. Kc5 {[%clk 0:00:05]} 1/2-1/2


[Site "https://www.chess.com"]

[Event "Titled Tuesday Blitz July 11 Early 2023"]
[White "Palacio,Igor Da Paz"]
[Black "Navyblue1"]
[WhiteFideId "2121140"]
[WhiteElo "2212"]
[BlackElo "1767"]
[Result "1/2-1/2"]
[Round "8"]
[TimeControl "180+2"]
[Date "2023.07.11"]
[WhiteClock "0:00:16"]
[BlackClock "0:00:17"]
[Board "166"]

1. e4 {[%clk 0:02:59]}  c5 {[%clk 0:03:00]} 2. Nc3 {[%clk 0:02:59]}  e6 {[%clk 0:02:54]} 3. g3 {[%clk 0:02:59]}  a6 {[%clk 0:02:43]} 4. Bg2 {[%clk 0:02:58]}  d6 {[%clk 0:02:44]} 5. d3 {[%clk 0:02:59]}  Nf6 {[%clk 0:02:43]} 6. f4 {[%clk 0:02:59]}  Nc6 {[%clk 0:02:19]} 7. Nf3 {[%clk 0:02:58]}  Rb8 {[%clk 0:02:05]} 8. O-O {[%clk 0:02:53]}  Be7 {[%clk 0:01:52]} 9. h3 {[%clk 0:02:53]}  b5 {[%clk 0:01:38]} 10. g4 {[%clk 0:02:50]}  Bb7 {[%clk 0:01:37]} 11. Be3 {[%clk 0:02:37]}  b4 {[%clk 0:01:08]} 12. Na4 {[%clk 0:02:37]}  Nd7 {[%clk 0:00:43]} 13. Rb1 {[%clk 0:02:22]}  Bf6 {[%clk 0:00:25]} 14. g5 {[%clk 0:02:00]}  Bd4 {[%clk 0:00:23]} 15. Qd2 {[%clk 0:01:41]}  Bxe3+ {[%clk 0:00:19]} 16. Qxe3 {[%clk 0:01:42]}  Nb6 {[%clk 0:00:18]} 17. Nxb6 {[%clk 0:01:40]}  Qxb6 {[%clk 0:00:18]} 18. c3 {[%clk 0:01:37]}  Ba8 {[%clk 0:00:17]} 19. c4 {[%clk 0:01:35]}  Nd4 {[%clk 0:00:17]} 20. Nxd4 {[%clk 0:01:33]}  cxd4 {[%clk 0:00:17]} 21. Qf3 {[%clk 0:01:33]}  Qc5 {[%clk 0:00:17]} 22. f5 {[%clk 0:01:32]}  exf5 {[%clk 0:00:17]} 23. Qxf5 {[%clk 0:01:31]}  Qxf5 {[%clk 0:00:17]} 24. exf5 {[%clk 0:01:31]}  Bxg2 {[%clk 0:00:17]} 25. Kxg2 {[%clk 0:01:31]}  Kd7 {[%clk 0:00:18]} 26. Rfe1 {[%clk 0:01:30]}  Rhe8 {[%clk 0:00:18]} 27. Kf3 {[%clk 0:01:30]}  Re5 {[%clk 0:00:17]} 28. Rxe5 {[%clk 0:01:19]}  dxe5 {[%clk 0:00:18]} 29. Ke4 {[%clk 0:01:16]}  Kd6 {[%clk 0:00:19]} 30. c5+ {[%clk 0:01:11]}  Kxc5 {[%clk 0:00:19]} 31. Kxe5 {[%clk 0:00:48]}  Re8+ {[%clk 0:00:18]} 32. Kf4 {[%clk 0:00:49]}  Re3 {[%clk 0:00:18]} 33. Rc1+ {[%clk 0:00:49]}  Kd6 {[%clk 0:00:18]} 34. Rc4 {[%clk 0:00:46]}  Rxd3 {[%clk 0:00:18]} 35. Rxb4 {[%clk 0:00:46]}  Rxh3 {[%clk 0:00:18]} 36. Rxd4+ {[%clk 0:00:44]}  Ke7 {[%clk 0:00:18]} 37. Re4+ {[%clk 0:00:30]}  Kd7 {[%clk 0:00:18]} 38. Kg4 {[%clk 0:00:28]}  Rh2 {[%clk 0:00:18]} 39. Rb4 {[%clk 0:00:28]}  Rg2+ {[%clk 0:00:17]} 40. Kh4 {[%clk 0:00:24]}  Rh2+ {[%clk 0:00:17]} 41. Kg4 {[%clk 0:00:25]}  Rg2+ {[%clk 0:00:17]} 42. Kf4 {[%clk 0:00:25]}  Rf2+ {[%clk 0:00:17]} 43. Ke4 {[%clk 0:00:25]}  Rg2 {[%clk 0:00:18]} 44. Rb7+ {[%clk 0:00:21]}  Ke8 {[%clk 0:00:17]} 45. Rb8+ {[%clk 0:00:19]}  Ke7 {[%clk 0:00:18]} 46. Rb7+ {[%clk 0:00:19]}  Ke8 {[%clk 0:00:17]} 47. Kf4 {[%clk 0:00:16]}  Rf2+ {[%clk 0:00:17]} 48. Ke4 {[%clk 0:00:16]}  Rg2 {[%clk 0:00:17]} 1/2-1/2


[Site "https://www.chess.com"]

[Event "Titled Tuesday Blitz July 11 Early 2023"]
[White "Kowalysko, Roman"]
[Black "Adla, Diego"]
[WhiteFideId "30918510"]
[BlackFideId "100072"]
[WhiteElo "2063"]
[BlackElo "2481"]
[Result "1/2-1/2"]
[Round "8"]
[TimeControl "180+2"]
[Date "2023.07.11"]
[WhiteClock "0:02:18"]
[BlackClock "0:01:17"]
[Board "167"]

1. e4 {[%clk 0:02:59]}  c5 {[%clk 0:02:59]} 2. Nc3 {[%clk 0:02:58]}  d6 {[%clk 0:02:57]} 3. Bc4 {[%clk 0:02:57]}  e6 {[%clk 0:02:56]} 4. a3 {[%clk 0:02:57]}  Nf6 {[%clk 0:02:53]} 5. d3 {[%clk 0:02:57]}  Bd7 {[%clk 0:02:45]} 6. f4 {[%clk 0:02:56]}  g6 {[%clk 0:02:44]} 7. Nf3 {[%clk 0:02:56]}  Bg7 {[%clk 0:02:43]} 8. O-O {[%clk 0:02:57]}  O-O {[%clk 0:02:42]} 9. e5 {[%clk 0:02:52]}  dxe5 {[%clk 0:02:38]} 10. Nxe5 {[%clk 0:02:41]}  Nc6 {[%clk 0:02:36]} 11. Nxd7 {[%clk 0:02:39]}  Qxd7 {[%clk 0:02:34]} 12. Ne4 {[%clk 0:02:37]}  Nxe4 {[%clk 0:02:21]} 13. dxe4 {[%clk 0:02:37]}  Rad8 {[%clk 0:02:19]} 14. Qxd7 {[%clk 0:02:36]}  Rxd7 {[%clk 0:02:19]} 15. Be3 {[%clk 0:02:37]}  b6 {[%clk 0:02:16]} 16. c3 {[%clk 0:02:36]}  Na5 {[%clk 0:02:11]} 17. Bb5 {[%clk 0:02:34]}  Rd6 {[%clk 0:02:02]} 18. e5 {[%clk 0:02:33]}  Rdd8 {[%clk 0:01:58]} 19. Rad1 {[%clk 0:02:33]}  Nb7 {[%clk 0:01:33]} 20. Kf2 {[%clk 0:02:23]}  Rxd1 {[%clk 0:01:27]} 21. Rxd1 {[%clk 0:02:24]}  Rd8 {[%clk 0:01:28]} 22. Rxd8+ {[%clk 0:02:23]}  Nxd8 {[%clk 0:01:29]} 23. b4 {[%clk 0:02:21]}  cxb4 {[%clk 0:01:27]} 24. cxb4 {[%clk 0:02:21]}  Kf8 {[%clk 0:01:25]} 25. Kf3 {[%clk 0:02:20]}  Ke7 {[%clk 0:01:24]} 26. Ke4 {[%clk 0:02:20]}  Nb7 {[%clk 0:01:19]} 27. Bc6 {[%clk 0:02:17]}  Nd8 {[%clk 0:01:18]} 28. Bb5 {[%clk 0:02:17]}  Nb7 {[%clk 0:01:17]} 29. Bc6 {[%clk 0:02:17]}  Nd8 {[%clk 0:01:17]} 30. Bb5 {[%clk 0:02:18]} 1/2-1/2


[Site "https://www.chess.com"]

[Event "Titled Tuesday Blitz July 11 Early 2023"]
[White "Tarnowska, Aleksandra"]
[Black "Blokhin, Sofia"]
[WhiteFideId "1180967"]
[BlackFideId "4508190"]
[WhiteElo "2110"]
[BlackElo "2280"]
[Result "0-1"]
[Round "8"]
[TimeControl "180+2"]
[Date "2023.07.11"]
[WhiteClock "0:00:00"]
[BlackClock "0:00:39"]
[Board "169"]

1. e4 {[%clk 0:03:00]}  c5 {[%clk 0:02:59]} 2. Nf3 {[%clk 0:02:59]}  e6 {[%clk 0:02:59]} 3. c3 {[%clk 0:02:57]}  d5 {[%clk 0:02:58]} 4. exd5 {[%clk 0:02:58]}  exd5 {[%clk 0:02:57]} 5. d4 {[%clk 0:02:58]}  Nf6 {[%clk 0:02:57]} 6. Bb5+ {[%clk 0:02:57]}  Nc6 {[%clk 0:02:56]} 7. O-O {[%clk 0:02:57]}  Be7 {[%clk 0:02:56]} 8. Ne5 {[%clk 0:02:57]}  Qc7 {[%clk 0:02:55]} 9. Bf4 {[%clk 0:02:50]}  Qb6 {[%clk 0:02:52]} 10. Qa4 {[%clk 0:02:34]}  Bd7 {[%clk 0:02:47]} 11. Nxd7 {[%clk 0:02:33]}  Nxd7 {[%clk 0:02:44]} 12. dxc5 {[%clk 0:02:19]}  Nxc5 {[%clk 0:02:41]} 13. Bxc6+ {[%clk 0:02:14]}  bxc6 {[%clk 0:02:40]} 14. Qd4 {[%clk 0:02:10]}  O-O {[%clk 0:02:33]} 15. Be3 {[%clk 0:01:35]}  Qc7 {[%clk 0:02:23]} 16. Nd2 {[%clk 0:01:26]}  Ne6 {[%clk 0:02:20]} 17. Qg4 {[%clk 0:01:25]}  f5 {[%clk 0:02:13]} 18. Qf3 {[%clk 0:01:15]}  f4 {[%clk 0:02:08]} 19. Bd4 {[%clk 0:01:14]}  Nxd4 {[%clk 0:01:49]} 20. cxd4 {[%clk 0:01:15]}  Qb6 {[%clk 0:01:43]} 21. Nb3 {[%clk 0:01:12]}  a5 {[%clk 0:01:41]} 22. Qc3 {[%clk 0:00:55]}  f3 {[%clk 0:01:36]} 23. Rfe1 {[%clk 0:00:51]}  Bb4 {[%clk 0:01:33]} 24. Qd3 {[%clk 0:00:35]}  Bxe1 {[%clk 0:01:31]} 25. Rxe1 {[%clk 0:00:32]}  fxg2 {[%clk 0:01:31]} 26. Qh3 {[%clk 0:00:25]}  a4 {[%clk 0:01:29]} 27. Nc5 {[%clk 0:00:15]}  Qxb2 {[%clk 0:01:28]} 28. Qg3 {[%clk 0:00:14]}  Rae8 {[%clk 0:01:10]} 29. Ne6 {[%clk 0:00:11]}  Rf7 {[%clk 0:00:56]} 30. Kxg2 {[%clk 0:00:08]}  Qd2 {[%clk 0:00:49]} 31. Re5 {[%clk 0:00:00]}  Qh6 {[%clk 0:00:39]} 0-1


[Site "https://www.chess.com"]

[Event "Titled Tuesday Blitz July 11 Early 2023"]
[White "Dwilewicz, Katarzyna"]
[Black "Ho, In Hei Henry"]
[WhiteFideId "1148486"]
[BlackFideId "6002552"]
[WhiteElo "2271"]
[BlackElo "2137"]
[Result "1-0"]
[Round "8"]
[TimeControl "180+2"]
[Date "2023.07.11"]
[WhiteClock "0:00:26"]
[BlackClock "0:00:03"]
[Board "170"]

1. e4 {[%clk 0:02:56]}  e6 {[%clk 0:01:57]} 2. d4 {[%clk 0:02:52]}  d5 {[%clk 0:01:58]} 3. exd5 {[%clk 0:02:51]}  exd5 {[%clk 0:01:58]} 4. Nf3 {[%clk 0:02:52]}  Nf6 {[%clk 0:01:58]} 5. Bd3 {[%clk 0:02:53]}  Be7 {[%clk 0:01:59]} 6. O-O {[%clk 0:02:53]}  O-O {[%clk 0:01:59]} 7. Re1 {[%clk 0:02:54]}  Be6 {[%clk 0:02:00]} 8. h3 {[%clk 0:02:55]}  Nbd7 {[%clk 0:01:59]} 9. Ng5 {[%clk 0:02:54]}  c5 {[%clk 0:01:44]} 10. Nxe6 {[%clk 0:02:47]}  fxe6 {[%clk 0:01:45]} 11. Rxe6 {[%clk 0:02:46]}  cxd4 {[%clk 0:01:41]} 12. Bf4 {[%clk 0:02:46]}  Nc5 {[%clk 0:01:39]} 13. Re2 {[%clk 0:02:46]}  Nfe4 {[%clk 0:01:31]} 14. Be5 {[%clk 0:02:28]}  Bf6 {[%clk 0:01:24]} 15. Bxe4 {[%clk 0:02:25]}  dxe4 {[%clk 0:01:23]} 16. Bxf6 {[%clk 0:02:21]}  Qxf6 {[%clk 0:01:23]} 17. Nd2 {[%clk 0:02:12]}  Qf4 {[%clk 0:01:13]} 18. g3 {[%clk 0:02:09]}  Qf5 {[%clk 0:01:11]} 19. Qf1 {[%clk 0:01:56]}  Rae8 {[%clk 0:01:08]} 20. Rae1 {[%clk 0:01:55]}  b6 {[%clk 0:00:50]} 21. b4 {[%clk 0:01:49]}  d3 {[%clk 0:00:47]} 22. Re3 {[%clk 0:01:48]}  Nd7 {[%clk 0:00:20]} 23. cxd3 {[%clk 0:01:47]}  Nf6 {[%clk 0:00:19]} 24. dxe4 {[%clk 0:01:46]}  Qd7 {[%clk 0:00:11]} 25. Nf3 {[%clk 0:01:38]}  Re7 {[%clk 0:00:09]} 26. e5 {[%clk 0:01:37]}  Nd5 {[%clk 0:00:09]} 27. Rd3 {[%clk 0:01:36]}  Qe6 {[%clk 0:00:09]} 28. Nd4 {[%clk 0:01:34]}  Qf7 {[%clk 0:00:09]} 29. a3 {[%clk 0:01:30]}  Nc7 {[%clk 0:00:08]} 30. f4 {[%clk 0:01:29]}  Ne6 {[%clk 0:00:08]} 31. Nxe6 {[%clk 0:01:13]}  Rxe6 {[%clk 0:00:09]} 32. Qf3 {[%clk 0:01:09]}  Rg6 {[%clk 0:00:08]} 33. Kh2 {[%clk 0:01:06]}  Kh8 {[%clk 0:00:09]} 34. Qd5 {[%clk 0:01:03]}  Qf5 {[%clk 0:00:09]} 35. Qe4 {[%clk 0:01:02]}  Qh5 {[%clk 0:00:08]} 36. Rf3 {[%clk 0:00:45]}  Rh6 {[%clk 0:00:08]} 37. h4 {[%clk 0:00:42]}  Qg4 {[%clk 0:00:08]} 38. f5 {[%clk 0:00:39]}  Qh5 {[%clk 0:00:08]} 39. e6 {[%clk 0:00:35]}  Rc8 {[%clk 0:00:06]} 40. Rd1 {[%clk 0:00:33]}  Qe8 {[%clk 0:00:06]} 41. Rd7 {[%clk 0:00:31]}  Rc2+ {[%clk 0:00:05]} 42. Kh3 {[%clk 0:00:31]}  Rc8 {[%clk 0:00:04]} 43. Qe5 {[%clk 0:00:27]}  a5 {[%clk 0:00:03]} 44. Qxg7# {[%clk 0:00:26]} 1-0


[Site "https://www.chess.com"]

[Event "Titled Tuesday Blitz July 11 Early 2023"]
[White "Firouzja, Alireza"]
[Black "Nakamura, Hikaru"]
[WhiteFideId "12573981"]
[BlackFideId "2016192"]
[WhiteElo "3094"]
[BlackElo "3241"]
[Result "0-1"]
[Round "9"]
[TimeControl "180+2"]
[Date "2023.07.11"]
[WhiteClock "0:00:00"]
[BlackClock "0:00:03"]
[Board "1"]

1. e4 {[%clk 0:03:00]}  a6 {[%clk 0:03:00]} 2. d4 {[%clk 0:02:59]}  c6 {[%clk 0:02:59]} 3. c4 {[%clk 0:02:48]}  d5 {[%clk 0:02:57]} 4. cxd5 {[%clk 0:02:48]}  cxd5 {[%clk 0:02:58]} 5. e5 {[%clk 0:02:41]}  Bf5 {[%clk 0:02:50]} 6. Nc3 {[%clk 0:02:40]}  Nc6 {[%clk 0:02:50]} 7. g4 {[%clk 0:02:24]}  Bg6 {[%clk 0:02:48]} 8. Nge2 {[%clk 0:02:22]}  e6 {[%clk 0:02:44]} 9. a3 {[%clk 0:02:12]}  f6 {[%clk 0:02:32]} 10. Nf4 {[%clk 0:02:02]}  Bf7 {[%clk 0:02:24]} 11. exf6 {[%clk 0:01:49]}  Qxf6 {[%clk 0:02:23]} 12. Be3 {[%clk 0:01:42]}  Bd6 {[%clk 0:02:22]} 13. g5 {[%clk 0:01:42]}  Qd8 {[%clk 0:01:59]} 14. Bh3 {[%clk 0:01:38]}  Bxf4 {[%clk 0:01:54]} 15. Bxf4 {[%clk 0:01:39]}  Nge7 {[%clk 0:01:52]} 16. O-O {[%clk 0:01:28]}  O-O {[%clk 0:01:45]} 17. Qd2 {[%clk 0:01:25]}  Qb6 {[%clk 0:00:59]} 18. Rad1 {[%clk 0:01:01]}  Rae8 {[%clk 0:00:49]} 19. Na4 {[%clk 0:00:48]}  Qb5 {[%clk 0:00:49]} 20. Nc5 {[%clk 0:00:25]}  e5 {[%clk 0:00:46]} 21. a4 {[%clk 0:00:19]}  Qc4 {[%clk 0:00:46]} 22. Be3 {[%clk 0:00:19]}  exd4 {[%clk 0:00:41]} 23. Bxd4 {[%clk 0:00:20]}  Bh5 {[%clk 0:00:17]} 24. b3 {[%clk 0:00:20]}  Qe2 {[%clk 0:00:18]} 25. Rfe1 {[%clk 0:00:18]}  Qf3 {[%clk 0:00:16]} 26. Bg2 {[%clk 0:00:10]}  Qf7 {[%clk 0:00:16]} 27. Rc1 {[%clk 0:00:08]}  Nf5 {[%clk 0:00:12]} 28. Bb2 {[%clk 0:00:06]}  d4 {[%clk 0:00:12]} 29. Qf4 {[%clk 0:00:06]}  Nb4 {[%clk 0:00:09]} 30. Ba3 {[%clk 0:00:05]}  a5 {[%clk 0:00:09]} 31. Bxb4 {[%clk 0:00:06]}  axb4 {[%clk 0:00:10]} 32. Nd3 {[%clk 0:00:06]}  Kh8 {[%clk 0:00:05]} 33. Ne5 {[%clk 0:00:06]}  Qxb3 {[%clk 0:00:05]} 34. Qe4 {[%clk 0:00:02]}  Qxa4 {[%clk 0:00:02]} 35. Qxb7 {[%clk 0:00:02]}  Rb8 {[%clk 0:00:02]} 36. Qc7 {[%clk 0:00:03]}  Qe8 {[%clk 0:00:02]} 37. g6 {[%clk 0:00:02]}  Bxg6 {[%clk 0:00:02]} 38. Bd5 {[%clk 0:00:02]}  Qd8 {[%clk 0:00:02]} 39. Nxg6+ {[%clk 0:00:02]}  hxg6 {[%clk 0:00:02]} 40. Qe5 {[%clk 0:00:02]}  Qg5+ {[%clk 0:00:03]} 41. Kh1 {[%clk 0:00:02]}  Rbd8 {[%clk 0:00:03]} 42. Rg1 {[%clk 0:00:02]}  Rxd5 {[%clk 0:00:03]} 43. Qxd5 {[%clk 0:00:00]}  Ng3+ {[%clk 0:00:03]} 0-1


[Site "https://www.chess.com"]

[Event "Titled Tuesday Blitz July 11 Early 2023"]
[White "Bok, Benjamin"]
[Black "Deac, Bogdan-Daniel"]
[WhiteFideId "1017063"]
[BlackFideId "1226380"]
[WhiteElo "2984"]
[BlackElo "2995"]
[Result "1-0"]
[Round "9"]
[TimeControl "180+2"]
[Date "2023.07.11"]
[WhiteClock "0:00:12"]
[BlackClock "0:00:02"]
[Board "3"]

1. d4 {[%clk 0:02:56]}  d5 {[%clk 0:02:59]} 2. c4 {[%clk 0:02:56]}  e6 {[%clk 0:02:59]} 3. Nc3 {[%clk 0:02:55]}  a6 {[%clk 0:02:59]} 4. cxd5 {[%clk 0:02:54]}  exd5 {[%clk 0:03:00]} 5. Nf3 {[%clk 0:02:42]}  Nf6 {[%clk 0:02:59]} 6. Bg5 {[%clk 0:02:42]}  Be6 {[%clk 0:02:59]} 7. e3 {[%clk 0:02:42]}  Nbd7 {[%clk 0:03:00]} 8. h3 {[%clk 0:02:42]}  h6 {[%clk 0:02:58]} 9. Bf4 {[%clk 0:02:40]}  Bf5 {[%clk 0:02:59]} 10. Qb3 {[%clk 0:02:35]}  Nb6 {[%clk 0:02:58]} 11. Be2 {[%clk 0:02:31]}  Be7 {[%clk 0:02:40]} 12. O-O {[%clk 0:02:30]}  O-O {[%clk 0:02:40]} 13. Rfc1 {[%clk 0:02:27]}  c6 {[%clk 0:02:40]} 14. Ne5 {[%clk 0:02:21]}  Be6 {[%clk 0:02:26]} 15. Bh2 {[%clk 0:01:54]}  Re8 {[%clk 0:02:16]} 16. Nd3 {[%clk 0:01:52]}  Nfd7 {[%clk 0:01:53]} 17. a4 {[%clk 0:01:39]}  a5 {[%clk 0:01:51]} 18. Nb5 {[%clk 0:01:39]}  cxb5 {[%clk 0:00:36]} 19. Bc7 {[%clk 0:01:39]}  bxa4 {[%clk 0:00:37]} 20. Qb5 {[%clk 0:01:29]}  Qc8 {[%clk 0:00:33]} 21. Bxb6 {[%clk 0:01:29]}  Qb8 {[%clk 0:00:32]} 22. Bc7 {[%clk 0:01:26]}  Qa7 {[%clk 0:00:32]} 23. Nf4 {[%clk 0:01:23]}  Nf6 {[%clk 0:00:29]} 24. Nxe6 {[%clk 0:01:10]}  fxe6 {[%clk 0:00:30]} 25. Bb6 {[%clk 0:01:07]}  Qb8 {[%clk 0:00:27]} 26. Rxa4 {[%clk 0:01:07]}  Rc8 {[%clk 0:00:20]} 27. Rxc8+ {[%clk 0:00:42]}  Qxc8 {[%clk 0:00:21]} 28. Rxa5 {[%clk 0:00:43]}  Rxa5 {[%clk 0:00:18]} 29. Bxa5 {[%clk 0:00:43]}  Ne4 {[%clk 0:00:16]} 30. g3 {[%clk 0:00:29]}  Qc2 {[%clk 0:00:11]} 31. Kg2 {[%clk 0:00:21]}  Nd6 {[%clk 0:00:09]} 32. Qd7 {[%clk 0:00:14]}  Qxe2 {[%clk 0:00:03]} 33. Qxe7 {[%clk 0:00:14]}  Ne4 {[%clk 0:00:04]} 34. Qxe6+ {[%clk 0:00:14]}  Kh8 {[%clk 0:00:04]} 35. Qc8+ {[%clk 0:00:13]}  Kh7 {[%clk 0:00:04]} 36. Qf5+ {[%clk 0:00:14]}  Kh8 {[%clk 0:00:05]} 37. Bc7 {[%clk 0:00:13]}  Qxb2 {[%clk 0:00:03]} 38. Qf8+ {[%clk 0:00:11]}  Kh7 {[%clk 0:00:03]} 39. Be5 {[%clk 0:00:12]}  Nf6 {[%clk 0:00:02]} 40. Bxf6 {[%clk 0:00:12]}  gxf6 {[%clk 0:00:02]} 41. Qf7+ {[%clk 0:00:12]} 1-0


[Site "https://www.chess.com"]

[Event "Titled Tuesday Blitz July 11 Early 2023"]
[White "He, Anthony"]
[Black "Tang, Andrew"]
[WhiteFideId "2088215"]
[BlackFideId "2059630"]
[WhiteElo "3001"]
[BlackElo "2922"]
[Result "1/2-1/2"]
[Round "9"]
[TimeControl "180+2"]
[Date "2023.07.11"]
[WhiteClock "0:00:05"]
[BlackClock "0:00:05"]
[Board "7"]

1. e4 {[%clk 0:02:50]}  e5 {[%clk 0:03:00]} 2. Nf3 {[%clk 0:02:50]}  Nc6 {[%clk 0:03:01]} 3. Bc4 {[%clk 0:02:51]}  Nf6 {[%clk 0:03:01]} 4. d3 {[%clk 0:02:51]}  h6 {[%clk 0:03:01]} 5. O-O {[%clk 0:02:50]}  d6 {[%clk 0:03:01]} 6. c3 {[%clk 0:02:50]}  g5 {[%clk 0:02:59]} 7. Re1 {[%clk 0:02:50]}  Bg7 {[%clk 0:03:00]} 8. d4 {[%clk 0:02:49]}  g4 {[%clk 0:03:00]} 9. dxe5 {[%clk 0:02:49]}  gxf3 {[%clk 0:03:00]} 10. exf6 {[%clk 0:02:49]}  Qxf6 {[%clk 0:03:01]} 11. Qxf3 {[%clk 0:02:49]}  Qxf3 {[%clk 0:03:00]} 12. gxf3 {[%clk 0:02:50]}  Rg8 {[%clk 0:03:00]} 13. Kh1 {[%clk 0:02:46]}  Be6 {[%clk 0:02:58]} 14. Be2 {[%clk 0:02:39]}  O-O-O {[%clk 0:02:58]} 15. Be3 {[%clk 0:02:39]}  d5 {[%clk 0:02:58]} 16. exd5 {[%clk 0:02:31]}  Bxd5 {[%clk 0:02:53]} 17. Nd2 {[%clk 0:02:31]}  Ne5 {[%clk 0:02:50]} 18. Rg1 {[%clk 0:02:28]}  Bc6 {[%clk 0:01:51]} 19. Rg3 {[%clk 0:02:28]}  Ng6 {[%clk 0:01:48]} 20. Bc4 {[%clk 0:02:05]}  Ne5 {[%clk 0:01:19]} 21. Be2 {[%clk 0:01:58]}  h5 {[%clk 0:01:19]} 22. Rag1 {[%clk 0:01:55]}  Ng4 {[%clk 0:01:14]} 23. Nc4 {[%clk 0:01:33]}  f5 {[%clk 0:00:55]} 24. h3 {[%clk 0:01:26]}  Bd5 {[%clk 0:00:05]} 25. hxg4 {[%clk 0:00:52]}  hxg4 {[%clk 0:00:06]} 26. Re1 {[%clk 0:00:31]}  b5 {[%clk 0:00:04]} 27. Nd2 {[%clk 0:00:29]}  Be5 {[%clk 0:00:04]} 28. Rg2 {[%clk 0:00:26]}  Rh8+ {[%clk 0:00:04]} 29. Kg1 {[%clk 0:00:27]}  Rh3 {[%clk 0:00:04]} 30. fxg4 {[%clk 0:00:11]}  Rdh8 {[%clk 0:00:04]} 31. f3 {[%clk 0:00:12]}  Bg3 {[%clk 0:00:03]} 32. Rxg3 {[%clk 0:00:11]}  Rxg3+ {[%clk 0:00:03]} 33. Kf2 {[%clk 0:00:12]}  Rgh3 {[%clk 0:00:04]} 34. Rg1 {[%clk 0:00:09]}  Rh2+ {[%clk 0:00:03]} 35. Rg2 {[%clk 0:00:10]}  Rxg2+ {[%clk 0:00:04]} 36. Kxg2 {[%clk 0:00:11]}  fxg4 {[%clk 0:00:04]} 37. Kf2 {[%clk 0:00:10]}  Rh2+ {[%clk 0:00:04]} 38. Kf1 {[%clk 0:00:08]}  gxf3 {[%clk 0:00:04]} 39. Nxf3 {[%clk 0:00:04]}  Bxf3 {[%clk 0:00:04]} 40. Bxf3 {[%clk 0:00:05]}  Rxb2 {[%clk 0:00:04]} 41. Bxa7 {[%clk 0:00:03]}  Rxa2 {[%clk 0:00:04]} 42. Bd4 {[%clk 0:00:04]}  Ra3 {[%clk 0:00:04]} 43. Ke2 {[%clk 0:00:03]}  c5 {[%clk 0:00:03]} 44. Bxc5 {[%clk 0:00:02]}  Rxc3 {[%clk 0:00:03]} 45. Bd4 {[%clk 0:00:03]}  Rxf3 {[%clk 0:00:03]} 46. Kxf3 {[%clk 0:00:03]}  b4 {[%clk 0:00:03]} 47. Ke4 {[%clk 0:00:04]}  b3 {[%clk 0:00:04]} 48. Kd3 {[%clk 0:00:05]}  b2 {[%clk 0:00:05]} 49. Bxb2 {[%clk 0:00:05]} 1/2-1/2


[Site "https://www.chess.com"]